[Event "Titled Tuesday Blitz February 07 Late 2023"]
[White "Castillo Pena, Patricia Evarista"]
[Black "Tinmaz, Kerem"]
[WhiteFideId "6412106"]
[BlackFideId "44559151"]
[WhiteElo "1783"]
[BlackElo "2177"]
[Result "0-1"]
[Round "08"]
[TimeControl "180+2"]
[Date "2023.02.07"]
[WhiteClock "0:00:33"]
[BlackClock "0:00:05"]

1. d4 {[%clk 0:02:57]}  d5 {[%clk 0:02:58]} 2. Nf3 {[%clk 0:02:56]}  Nf6 {[%clk 0:02:58]} 3. e3 {[%clk 0:02:57]}  Bf5 {[%clk 0:02:58]} 4. Bd3 {[%clk 0:02:57]}  Bxd3 {[%clk 0:02:58]} 5. Qxd3 {[%clk 0:02:58]}  a6 {[%clk 0:02:54]} 6. Nbd2 {[%clk 0:02:59]}  e6 {[%clk 0:02:54]} 7. O-O {[%clk 0:02:54]}  Bd6 {[%clk 0:02:54]} 8. e4 {[%clk 0:02:55]}  dxe4 {[%clk 0:02:48]} 9. Nxe4 {[%clk 0:02:55]}  Nbd7 {[%clk 0:02:37]} 10. Nxd6+ {[%clk 0:02:48]}  cxd6 {[%clk 0:02:37]} 11. Bf4 {[%clk 0:02:44]}  Qb6 {[%clk 0:02:26]} 12. b3 {[%clk 0:02:40]}  O-O {[%clk 0:02:26]} 13. c4 {[%clk 0:02:36]}  Rfe8 {[%clk 0:02:19]} 14. Rfe1 {[%clk 0:02:33]}  Rad8 {[%clk 0:02:16]} 15. Qc3 {[%clk 0:02:24]}  d5 {[%clk 0:01:39]} 16. Rad1 {[%clk 0:02:18]}  Ne4 {[%clk 0:01:33]} 17. Qa1 {[%clk 0:02:17]}  Ndf6 {[%clk 0:01:32]} 18. Be5 {[%clk 0:02:11]}  Rc8 {[%clk 0:00:57]} 19. c5 {[%clk 0:02:09]}  Qb5 {[%clk 0:00:56]} 20. Nd2 {[%clk 0:01:39]}  Nxd2 {[%clk 0:00:47]} 21. Rxd2 {[%clk 0:01:39]}  Ne4 {[%clk 0:00:43]} 22. Rde2 {[%clk 0:01:26]}  Qb4 {[%clk 0:00:27]} 23. Qb2 {[%clk 0:01:13]}  b6 {[%clk 0:00:11]} 24. a3 {[%clk 0:01:12]}  Qb5 {[%clk 0:00:11]} 25. b4 {[%clk 0:01:09]}  bxc5 {[%clk 0:00:08]} 26. bxc5 {[%clk 0:01:08]}  Qxb2 {[%clk 0:00:07]} 27. Rxb2 {[%clk 0:01:08]}  f6 {[%clk 0:00:03]} 28. Bf4 {[%clk 0:00:59]}  e5 {[%clk 0:00:04]} 29. dxe5 {[%clk 0:00:54]}  fxe5 {[%clk 0:00:05]} 30. Be3 {[%clk 0:00:53]}  d4 {[%clk 0:00:04]} 31. Bc1 {[%clk 0:00:47]}  Nxc5 {[%clk 0:00:04]} 32. Rb6 {[%clk 0:00:36]}  Nd3 {[%clk 0:00:04]} 33. Bd2 {[%clk 0:00:34]}  Nxe1 {[%clk 0:00:03]} 34. Bxe1 {[%clk 0:00:34]}  Rc1 {[%clk 0:00:04]} 35. Kf1 {[%clk 0:00:33]}  d3 {[%clk 0:00:05]} 0-1


[Site "https://www.chess.com"]

[Event "Titled Tuesday Blitz February 07 Late 2023"]
[White "Manu_ChessExcelsior"]
[Black "Vaglio Munoz, Jaime"]
[BlackFideId "6500145"]
[WhiteElo "1881"]
[BlackElo "2174"]
[Result "1-0"]
[Round "08"]
[TimeControl "180+2"]
[Date "2023.02.07"]
[WhiteClock "0:00:28"]
[BlackClock "0:00:17"]

1. e4 {[%clk 0:03:00]}  c5 {[%clk 0:02:57]} 2. g3 {[%clk 0:02:58]}  Qa5 {[%clk 0:02:56]} 3. Bg2 {[%clk 0:02:55]}  Nc6 {[%clk 0:02:56]} 4. c3 {[%clk 0:02:50]}  g6 {[%clk 0:02:55]} 5. d3 {[%clk 0:02:48]}  Bg7 {[%clk 0:02:54]} 6. f4 {[%clk 0:02:49]}  d6 {[%clk 0:02:53]} 7. Nf3 {[%clk 0:02:49]}  Bg4 {[%clk 0:02:53]} 8. O-O {[%clk 0:02:49]}  Rd8 {[%clk 0:02:52]} 9. Be3 {[%clk 0:02:47]}  h5 {[%clk 0:02:51]} 10. h3 {[%clk 0:02:44]}  Bc8 {[%clk 0:02:50]} 11. Bf2 {[%clk 0:02:44]}  Qb6 {[%clk 0:02:49]} 12. Qc2 {[%clk 0:02:43]}  e5 {[%clk 0:02:47]} 13. Nbd2 {[%clk 0:02:35]}  Nge7 {[%clk 0:02:47]} 14. f5 {[%clk 0:02:30]}  gxf5 {[%clk 0:02:45]} 15. Nh4 {[%clk 0:02:30]}  fxe4 {[%clk 0:02:26]} 16. dxe4 {[%clk 0:02:29]}  Bf6 {[%clk 0:02:15]} 17. Nc4 {[%clk 0:02:10]}  Qc7 {[%clk 0:02:14]} 18. Rad1 {[%clk 0:02:03]}  Bxh4 {[%clk 0:02:12]} 19. gxh4 {[%clk 0:02:04]}  Be6 {[%clk 0:02:12]} 20. Qe2 {[%clk 0:01:57]}  Kd7 {[%clk 0:02:05]} 21. Bxc5 {[%clk 0:01:53]}  Bxc4 {[%clk 0:01:59]} 22. Qxc4 {[%clk 0:01:53]}  Kc8 {[%clk 0:01:47]} 23. Be3 {[%clk 0:01:42]}  Rhg8 {[%clk 0:01:33]} 24. Rxf7 {[%clk 0:01:38]}  Qd7 {[%clk 0:01:23]} 25. Kh2 {[%clk 0:01:34]}  Kb8 {[%clk 0:01:23]} 26. Bg5 {[%clk 0:01:28]}  Rc8 {[%clk 0:01:21]} 27. Qb5 {[%clk 0:01:21]}  Qe6 {[%clk 0:01:05]} 28. Rf6 {[%clk 0:01:13]}  Qxa2 {[%clk 0:01:02]} 29. Rfxd6 {[%clk 0:01:08]}  Ng6 {[%clk 0:00:57]} 30. Rd7 {[%clk 0:01:02]}  Qa6 {[%clk 0:00:48]} 31. Qd5 {[%clk 0:00:46]}  Nf4 {[%clk 0:00:44]} 32. Bxf4 {[%clk 0:00:47]}  exf4 {[%clk 0:00:44]} 33. Qd6+ {[%clk 0:00:47]}  Ka8 {[%clk 0:00:43]} 34. Qxf4 {[%clk 0:00:48]}  Rcf8 {[%clk 0:00:36]} 35. Qe3 {[%clk 0:00:37]}  Qb5 {[%clk 0:00:30]} 36. e5 {[%clk 0:00:35]}  Qxb2 {[%clk 0:00:29]} 37. R1d2 {[%clk 0:00:35]}  Qb5 {[%clk 0:00:24]} 38. e6 {[%clk 0:00:32]}  Re8 {[%clk 0:00:23]} 39. e7 {[%clk 0:00:31]}  Qb6 {[%clk 0:00:15]} 40. Qxb6 {[%clk 0:00:29]}  axb6 {[%clk 0:00:16]} 41. Bxc6 {[%clk 0:00:27]}  bxc6 {[%clk 0:00:15]} 42. Rd8+ {[%clk 0:00:28]}  Kb7 {[%clk 0:00:15]} 43. R2d7+ {[%clk 0:00:26]}  Ka6 {[%clk 0:00:15]} 44. Rxe8 {[%clk 0:00:26]}  Rxe8 {[%clk 0:00:15]} 45. Kg3 {[%clk 0:00:27]}  Kb5 {[%clk 0:00:15]} 46. Kf4 {[%clk 0:00:27]}  c5 {[%clk 0:00:16]} 47. Kf5 {[%clk 0:00:25]}  Kc6 {[%clk 0:00:16]} 48. Ke6 {[%clk 0:00:25]}  b5 {[%clk 0:00:16]} 49. Rd8 {[%clk 0:00:26]}  Rxe7+ {[%clk 0:00:15]} 50. Kxe7 {[%clk 0:00:27]}  b4 {[%clk 0:00:15]} 51. cxb4 {[%clk 0:00:27]}  cxb4 {[%clk 0:00:15]} 52. Kf6 {[%clk 0:00:27]}  Kc7 {[%clk 0:00:15]} 53. Rd4 {[%clk 0:00:26]}  b3 {[%clk 0:00:14]} 54. Rb4 {[%clk 0:00:27]}  Kd6 {[%clk 0:00:15]} 55. Rxb3 {[%clk 0:00:27]}  Kd7 {[%clk 0:00:15]} 56. Kg5 {[%clk 0:00:27]}  Ke8 {[%clk 0:00:16]} 57. Kxh5 {[%clk 0:00:27]}  Kf7 {[%clk 0:00:16]} 58. Kg5 {[%clk 0:00:27]}  Kg7 {[%clk 0:00:17]} 59. Rb6 {[%clk 0:00:28]}  Kh7 {[%clk 0:00:17]} 60. Rg6 {[%clk 0:00:27]}  Kh8 {[%clk 0:00:17]} 61. Kf6 {[%clk 0:00:27]}  Kh7 {[%clk 0:00:17]} 62. Kf7 {[%clk 0:00:28]}  Kh8 {[%clk 0:00:17]} 63. Rh6# {[%clk 0:00:28]} 1-0


[Site "https://www.chess.com"]

[Event "Titled Tuesday Blitz February 07 Late 2023"]
[White "Winkels, Marcel"]
[Black "Slavin, Alexey"]
[WhiteFideId "1003887"]
[BlackFideId "24104388"]
[WhiteElo "1960"]
[BlackElo "2364"]
[Result "0-1"]
[Round "08"]
[TimeControl "180+2"]
[Date "2023.02.07"]
[WhiteClock "0:00:10"]
[BlackClock "0:00:53"]

1. e4 {[%clk 0:03:00]}  Nc6 {[%clk 0:02:59]} 2. Nf3 {[%clk 0:02:59]}  d6 {[%clk 0:02:57]} 3. d4 {[%clk 0:02:59]}  Nf6 {[%clk 0:02:57]} 4. Nc3 {[%clk 0:02:58]}  Bg4 {[%clk 0:02:57]} 5. Be2 {[%clk 0:02:58]}  e5 {[%clk 0:02:57]} 6. d5 {[%clk 0:02:50]}  Ne7 {[%clk 0:02:56]} 7. h3 {[%clk 0:02:48]}  Bd7 {[%clk 0:02:55]} 8. Be3 {[%clk 0:02:47]}  Ng6 {[%clk 0:02:55]} 9. Qd2 {[%clk 0:02:46]}  Be7 {[%clk 0:02:54]} 10. O-O-O {[%clk 0:02:41]}  a6 {[%clk 0:02:54]} 11. g4 {[%clk 0:02:38]}  b5 {[%clk 0:02:53]} 12. g5 {[%clk 0:02:27]}  b4 {[%clk 0:02:47]} 13. Nb1 {[%clk 0:02:24]}  Nxe4 {[%clk 0:02:46]} 14. Qxb4 {[%clk 0:02:20]}  Nxg5 {[%clk 0:02:42]} 15. Nxg5 {[%clk 0:01:42]}  Bxg5 {[%clk 0:02:41]} 16. Rdg1 {[%clk 0:01:37]}  Bf4 {[%clk 0:02:19]} 17. h4 {[%clk 0:01:32]}  h5 {[%clk 0:01:59]} 18. Qe4 {[%clk 0:01:17]}  Qf6 {[%clk 0:01:56]} 19. Bxf4 {[%clk 0:01:12]}  Qxf4+ {[%clk 0:01:54]} 20. Qxf4 {[%clk 0:01:10]}  Nxf4 {[%clk 0:01:53]} 21. Bf3 {[%clk 0:01:09]}  g6 {[%clk 0:01:49]} 22. Nd2 {[%clk 0:01:06]}  Ke7 {[%clk 0:01:39]} 23. Ne4 {[%clk 0:01:04]}  Bf5 {[%clk 0:01:23]} 24. c4 {[%clk 0:01:00]}  Nd3+ {[%clk 0:01:16]} 25. Kd2 {[%clk 0:00:47]}  Bxe4 {[%clk 0:01:15]} 26. Bxe4 {[%clk 0:00:45]}  Nxf2 {[%clk 0:01:15]} 27. Bf3 {[%clk 0:00:26]}  Nxh1 {[%clk 0:01:13]} 28. Bxh1 {[%clk 0:00:27]}  Rhg8 {[%clk 0:01:07]} 29. b3 {[%clk 0:00:26]}  f5 {[%clk 0:01:06]} 30. Rg5 {[%clk 0:00:24]}  Kf6 {[%clk 0:01:07]} 31. Bf3 {[%clk 0:00:24]}  a5 {[%clk 0:01:06]} 32. a4 {[%clk 0:00:22]}  Rab8 {[%clk 0:01:05]} 33. Kc3 {[%clk 0:00:22]}  Rg7 {[%clk 0:01:05]} 34. Bd1 {[%clk 0:00:21]}  Rb6 {[%clk 0:01:03]} 35. Kd3 {[%clk 0:00:21]}  c5 {[%clk 0:01:01]} 36. Ke3 {[%clk 0:00:20]}  Rgb7 {[%clk 0:01:01]} 37. Kd3 {[%clk 0:00:18]}  Rxb3+ {[%clk 0:01:00]} 38. Bxb3 {[%clk 0:00:18]}  Rxb3+ {[%clk 0:01:01]} 39. Kc2 {[%clk 0:00:19]}  Rb4 {[%clk 0:01:01]} 40. Kc3 {[%clk 0:00:17]}  Rxa4 {[%clk 0:01:01]} 41. Rg2 {[%clk 0:00:17]}  Ra3+ {[%clk 0:01:00]} 42. Kb2 {[%clk 0:00:17]}  Rh3 {[%clk 0:00:59]} 43. Rg1 {[%clk 0:00:14]}  Rxh4 {[%clk 0:00:58]} 44. Ra1 {[%clk 0:00:14]}  Rxc4 {[%clk 0:00:58]} 45. Rxa5 {[%clk 0:00:14]}  Rd4 {[%clk 0:00:58]} 46. Ra6 {[%clk 0:00:12]}  Rxd5 {[%clk 0:00:58]} 47. Kc3 {[%clk 0:00:12]}  Rd4 {[%clk 0:00:58]} 48. Rc6 {[%clk 0:00:11]}  h4 {[%clk 0:00:57]} 49. Rc8 {[%clk 0:00:10]}  f4 {[%clk 0:00:55]} 50. Rh8 {[%clk 0:00:10]}  g5 {[%clk 0:00:52]} 51. Rh6+ {[%clk 0:00:10]}  Kf5 {[%clk 0:00:53]} 0-1


[Site "https://www.chess.com"]

[Event "Titled Tuesday Blitz February 07 Late 2023"]
[White "Alexikov, Alexander"]
[Black "Mohammadian, Mohammad"]
[WhiteFideId "14103958"]
[BlackFideId "12566055"]
[WhiteElo "2209"]
[BlackElo "1398"]
[Result "1-0"]
[Round "08"]
[TimeControl "180+2"]
[Date "2023.02.07"]
[WhiteClock "0:00:26"]
[BlackClock "0:00:03"]

1. e4 {[%clk 0:03:00]}  e5 {[%clk 0:02:55]} 2. Nf3 {[%clk 0:03:00]}  Nc6 {[%clk 0:02:54]} 3. c3 {[%clk 0:03:00]}  Nf6 {[%clk 0:02:52]} 4. d4 {[%clk 0:03:00]}  exd4 {[%clk 0:02:46]} 5. e5 {[%clk 0:03:00]}  Nd5 {[%clk 0:02:40]} 6. Bb5 {[%clk 0:02:58]}  Bc5 {[%clk 0:02:31]} 7. O-O {[%clk 0:02:51]}  O-O {[%clk 0:02:27]} 8. cxd4 {[%clk 0:02:50]}  Bb6 {[%clk 0:02:23]} 9. Bc4 {[%clk 0:02:22]}  Nde7 {[%clk 0:01:56]} 10. d5 {[%clk 0:02:14]}  Nb8 {[%clk 0:01:40]} 11. Nc3 {[%clk 0:02:04]}  Ng6 {[%clk 0:01:38]} 12. Bg5 {[%clk 0:02:01]}  Qe8 {[%clk 0:01:37]} 13. Re1 {[%clk 0:01:59]}  d6 {[%clk 0:01:29]} 14. exd6 {[%clk 0:01:55]}  Qd7 {[%clk 0:01:22]} 15. Be7 {[%clk 0:01:44]}  Nxe7 {[%clk 0:01:19]} 16. dxe7 {[%clk 0:01:43]}  Re8 {[%clk 0:01:16]} 17. Bb5 {[%clk 0:01:30]}  c6 {[%clk 0:01:15]} 18. dxc6 {[%clk 0:01:29]}  bxc6 {[%clk 0:01:14]} 19. Qxd7 {[%clk 0:01:28]}  Bxd7 {[%clk 0:01:11]} 20. Bc4 {[%clk 0:01:25]}  Bg4 {[%clk 0:01:00]} 21. Rad1 {[%clk 0:01:00]}  Nd7 {[%clk 0:00:59]} 22. h3 {[%clk 0:00:57]}  Bxf3 {[%clk 0:00:53]} 23. Rxd7 {[%clk 0:00:56]}  Bh5 {[%clk 0:00:40]} 24. g4 {[%clk 0:00:54]}  Bg6 {[%clk 0:00:39]} 25. Kg2 {[%clk 0:00:54]}  Rac8 {[%clk 0:00:30]} 26. f4 {[%clk 0:00:53]}  h6 {[%clk 0:00:18]} 27. f5 {[%clk 0:00:51]}  Bh7 {[%clk 0:00:18]} 28. Kf3 {[%clk 0:00:48]}  g6 {[%clk 0:00:18]} 29. f6 {[%clk 0:00:40]}  g5 {[%clk 0:00:18]} 30. Ne4 {[%clk 0:00:35]}  Bxe4+ {[%clk 0:00:17]} 31. Kxe4 {[%clk 0:00:35]}  c5 {[%clk 0:00:16]} 32. Ke5 {[%clk 0:00:33]}  Rc6 {[%clk 0:00:14]} 33. Red1 {[%clk 0:00:30]}  Rcc8 {[%clk 0:00:10]} 34. Kd6 {[%clk 0:00:29]}  Ba5 {[%clk 0:00:03]} 35. Rd3 {[%clk 0:00:26]}  Bb6 {[%clk 0:00:03]} 36. Rd5 {[%clk 0:00:26]} 1-0


[Site "https://www.chess.com"]

[Event "Titled Tuesday Blitz February 07 Late 2023"]
[White "Sailer, Mike"]
[Black "Roman, Rodrigo"]
[WhiteFideId "2012901"]
[BlackFideId "3701220"]
[WhiteElo "2109"]
[BlackElo "2058"]
[Result "1-0"]
[Round "08"]
[TimeControl "180+2"]
[Date "2023.02.07"]
[WhiteClock "0:00:34"]
[BlackClock "0:00:01"]

1. d4 {[%clk 0:02:59]}  Nf6 {[%clk 0:02:52]} 2. Nf3 {[%clk 0:02:59]}  e6 {[%clk 0:02:53]} 3. Bf4 {[%clk 0:02:59]}  b6 {[%clk 0:02:50]} 4. e3 {[%clk 0:03:00]}  Bb7 {[%clk 0:02:46]} 5. Be2 {[%clk 0:02:59]}  Nh5 {[%clk 0:02:22]} 6. Bg5 {[%clk 0:02:57]}  Be7 {[%clk 0:02:12]} 7. Bxe7 {[%clk 0:02:56]}  Qxe7 {[%clk 0:02:13]} 8. O-O {[%clk 0:02:54]}  Nf6 {[%clk 0:02:02]} 9. c4 {[%clk 0:02:53]}  d6 {[%clk 0:01:42]} 10. Nc3 {[%clk 0:02:54]}  e5 {[%clk 0:01:39]} 11. c5 {[%clk 0:02:32]}  exd4 {[%clk 0:01:31]} 12. cxd6 {[%clk 0:02:32]}  Qxd6 {[%clk 0:01:28]} 13. Nb5 {[%clk 0:02:14]}  Qe7 {[%clk 0:01:03]} 14. Nfxd4 {[%clk 0:02:02]}  O-O {[%clk 0:01:00]} 15. Bf3 {[%clk 0:02:02]}  Be4 {[%clk 0:00:42]} 16. Rc1 {[%clk 0:01:51]}  c5 {[%clk 0:00:40]} 17. Bxe4 {[%clk 0:01:48]}  Nxe4 {[%clk 0:00:38]} 18. Nf5 {[%clk 0:01:24]}  Qe5 {[%clk 0:00:38]} 19. Ng3 {[%clk 0:01:17]}  Nc6 {[%clk 0:00:35]} 20. Qd7 {[%clk 0:01:05]}  Rac8 {[%clk 0:00:26]} 21. Nxa7 {[%clk 0:00:59]}  Nxg3 {[%clk 0:00:18]} 22. hxg3 {[%clk 0:00:57]}  Nxa7 {[%clk 0:00:15]} 23. Qxa7 {[%clk 0:00:57]}  Rb8 {[%clk 0:00:10]} 24. Rc2 {[%clk 0:00:53]}  Qe4 {[%clk 0:00:10]} 25. Rd2 {[%clk 0:00:48]}  Qb4 {[%clk 0:00:10]} 26. Rfd1 {[%clk 0:00:43]}  Ra8 {[%clk 0:00:11]} 27. Qxa8 {[%clk 0:00:34]}  Qxd2 {[%clk 0:00:07]} 28. Qxf8+ {[%clk 0:00:33]}  Kxf8 {[%clk 0:00:01]} 29. Rxd2 {[%clk 0:00:34]} 1-0


[Site "https://www.chess.com"]

[Event "Titled Tuesday Blitz February 07 Late 2023"]
[White "Balog, Imre"]
[Black "Zampronha, Wladimir Camilo"]
[WhiteFideId "728446"]
[BlackFideId "2103087"]
[WhiteElo "2615"]
[BlackElo "2176"]
[Result "1-0"]
[Round "08"]
[TimeControl "180+2"]
[Date "2023.02.07"]
[WhiteClock "0:00:02"]
[BlackClock "0:00:15"]

1. e4 {[%clk 0:03:00]}  c5 {[%clk 0:02:54]} 2. Nc3 {[%clk 0:02:59]}  e6 {[%clk 0:02:54]} 3. Nf3 {[%clk 0:02:58]}  Nc6 {[%clk 0:02:55]} 4. d4 {[%clk 0:02:58]}  cxd4 {[%clk 0:02:56]} 5. Nxd4 {[%clk 0:02:58]}  Qc7 {[%clk 0:02:57]} 6. Be2 {[%clk 0:02:52]}  a6 {[%clk 0:02:57]} 7. O-O {[%clk 0:02:49]}  Nf6 {[%clk 0:02:58]} 8. Be3 {[%clk 0:02:43]}  Bb4 {[%clk 0:02:58]} 9. Na4 {[%clk 0:01:54]}  Be7 {[%clk 0:02:56]} 10. Nxc6 {[%clk 0:01:35]}  bxc6 {[%clk 0:02:57]} 11. Bb6 {[%clk 0:01:22]}  Qb8 {[%clk 0:02:40]} 12. c4 {[%clk 0:01:12]}  Nxe4 {[%clk 0:02:29]} 13. Bd3 {[%clk 0:00:47]}  Nf6 {[%clk 0:02:27]} 14. h3 {[%clk 0:00:42]}  O-O {[%clk 0:02:25]} 15. c5 {[%clk 0:00:39]}  Nd5 {[%clk 0:02:16]} 16. Re1 {[%clk 0:00:30]}  d6 {[%clk 0:02:14]} 17. b4 {[%clk 0:00:17]}  Bb7 {[%clk 0:01:46]} 18. a3 {[%clk 0:00:14]}  Bd8 {[%clk 0:01:34]} 19. Qg4 {[%clk 0:00:13]}  Nxb6 {[%clk 0:01:04]} 20. Nxb6 {[%clk 0:00:12]}  Bxb6 {[%clk 0:01:03]} 21. cxb6 {[%clk 0:00:13]}  Bc8 {[%clk 0:00:56]} 22. Re3 {[%clk 0:00:09]}  Qxb6 {[%clk 0:00:49]} 23. Rae1 {[%clk 0:00:08]}  e5 {[%clk 0:00:45]} 24. Qh5 {[%clk 0:00:06]}  f5 {[%clk 0:00:42]} 25. Rg3 {[%clk 0:00:06]}  Qc7 {[%clk 0:00:35]} 26. Bc4+ {[%clk 0:00:04]}  d5 {[%clk 0:00:34]} 27. Bb3 {[%clk 0:00:04]}  Kh8 {[%clk 0:00:28]} 28. Qg5 {[%clk 0:00:04]}  e4 {[%clk 0:00:20]} 29. Rc1 {[%clk 0:00:05]}  Bb7 {[%clk 0:00:19]} 30. Rc5 {[%clk 0:00:04]}  Qf7 {[%clk 0:00:20]} 31. Rcc3 {[%clk 0:00:03]}  Rad8 {[%clk 0:00:20]} 32. Rc2 {[%clk 0:00:02]}  Qf6 {[%clk 0:00:20]} 33. Re2 {[%clk 0:00:01]}  Qxg5 {[%clk 0:00:20]} 34. Rxg5 {[%clk 0:00:02]}  d4 {[%clk 0:00:20]} 35. Rd2 {[%clk 0:00:02]}  a5 {[%clk 0:00:20]} 36. g4 {[%clk 0:00:02]}  axb4 {[%clk 0:00:19]} 37. axb4 {[%clk 0:00:01]}  f4 {[%clk 0:00:19]} 38. Re5 {[%clk 0:00:01]}  e3 {[%clk 0:00:19]} 39. fxe3 {[%clk 0:00:01]}  dxe3 {[%clk 0:00:19]} 40. Rxd8 {[%clk 0:00:01]}  Rxd8 {[%clk 0:00:20]} 41. Kg2 {[%clk 0:00:01]}  c5+ {[%clk 0:00:16]} 42. Kf1 {[%clk 0:00:02]}  cxb4 {[%clk 0:00:16]} 43. Ke2 {[%clk 0:00:02]}  Rd2+ {[%clk 0:00:16]} 44. Ke1 {[%clk 0:00:02]}  Rb2 {[%clk 0:00:15]} 45. Re8# {[%clk 0:00:02]} 1-0


[Site "https://www.chess.com"]

[Event "Titled Tuesday Blitz February 07 Late 2023"]
[White "Desideri, Ricardo Maruchi"]
[Black "Tarnowska, Aleksandra"]
[WhiteFideId "2110440"]
[BlackFideId "1180967"]
[WhiteElo "1959"]
[BlackElo "1835"]
[Result "0-1"]
[Round "08"]
[TimeControl "180+2"]
[Date "2023.02.07"]
[WhiteClock "0:00:09"]
[BlackClock "0:00:42"]

1. e4 {[%clk 0:02:08]}  c5 {[%clk 0:02:58]} 2. Nf3 {[%clk 0:02:07]}  e6 {[%clk 0:02:59]} 3. d4 {[%clk 0:02:07]}  cxd4 {[%clk 0:03:00]} 4. Nxd4 {[%clk 0:02:08]}  a6 {[%clk 0:03:00]} 5. Nc3 {[%clk 0:02:07]}  Qc7 {[%clk 0:03:01]} 6. Bd3 {[%clk 0:02:07]}  Nc6 {[%clk 0:03:00]} 7. Nb3 {[%clk 0:02:06]}  b5 {[%clk 0:02:58]} 8. a3 {[%clk 0:02:05]}  Bb7 {[%clk 0:02:58]} 9. Be3 {[%clk 0:02:02]}  Nf6 {[%clk 0:02:58]} 10. f3 {[%clk 0:02:01]}  Be7 {[%clk 0:02:57]} 11. g4 {[%clk 0:02:00]}  d6 {[%clk 0:02:46]} 12. g5 {[%clk 0:01:59]}  Nd7 {[%clk 0:02:45]} 13. f4 {[%clk 0:01:58]}  b4 {[%clk 0:02:36]} 14. Na4 {[%clk 0:01:47]}  bxa3 {[%clk 0:02:30]} 15. bxa3 {[%clk 0:01:46]}  d5 {[%clk 0:02:24]} 16. exd5 {[%clk 0:01:36]}  exd5 {[%clk 0:02:25]} 17. O-O {[%clk 0:01:13]}  O-O {[%clk 0:01:56]} 18. Qh5 {[%clk 0:00:44]}  g6 {[%clk 0:01:47]} 19. Qh6 {[%clk 0:00:40]}  Rfe8 {[%clk 0:01:45]} 20. Nac5 {[%clk 0:00:26]}  d4 {[%clk 0:01:04]} 21. Nxd7 {[%clk 0:00:16]}  Qxd7 {[%clk 0:00:59]} 22. Bf2 {[%clk 0:00:15]}  Bf8 {[%clk 0:00:55]} 23. Qh4 {[%clk 0:00:14]}  Qd5 {[%clk 0:00:47]} 24. Rae1 {[%clk 0:00:10]}  Ne5 {[%clk 0:00:43]} 25. Qg3 {[%clk 0:00:09]}  Qh1# {[%clk 0:00:42]} 0-1


[Site "https://www.chess.com"]

[Event "Titled Tuesday Blitz February 07 Late 2023"]
[White "rikchessmx"]
[Black "De Oliveira, Gustavo Alfredo Bue"]
[BlackFideId "2171201"]
[WhiteElo "2230"]
[BlackElo "2139"]
[Result "1-0"]
[Round "08"]
[TimeControl "180+2"]
[Date "2023.02.07"]
[WhiteClock "0:01:39"]
[BlackClock "0:02:18"]

1. e4 {[%clk 0:02:12]}  c5 {[%clk 0:02:57]} 2. Nf3 {[%clk 0:02:11]}  e6 {[%clk 0:02:57]} 3. d4 {[%clk 0:02:12]}  cxd4 {[%clk 0:02:57]} 4. Nxd4 {[%clk 0:02:13]}  Nc6 {[%clk 0:02:57]} 5. Nc3 {[%clk 0:02:13]}  Nf6 {[%clk 0:02:57]} 6. Nxc6 {[%clk 0:02:12]}  bxc6 {[%clk 0:02:56]} 7. Bd3 {[%clk 0:02:13]}  d5 {[%clk 0:02:55]} 8. O-O {[%clk 0:02:13]}  Be7 {[%clk 0:02:54]} 9. Qe2 {[%clk 0:02:13]}  O-O {[%clk 0:02:54]} 10. Bg5 {[%clk 0:02:11]}  a5 {[%clk 0:02:53]} 11. e5 {[%clk 0:02:06]}  Nd7 {[%clk 0:02:51]} 12. Bxe7 {[%clk 0:02:06]}  Qxe7 {[%clk 0:02:51]} 13. f4 {[%clk 0:02:07]}  Nc5 {[%clk 0:02:50]} 14. Bxh7+ {[%clk 0:02:07]}  Kxh7 {[%clk 0:02:49]} 15. Qh5+ {[%clk 0:02:07]}  Kg8 {[%clk 0:02:49]} 16. Rf3 {[%clk 0:02:08]}  f5 {[%clk 0:02:43]} 17. Raf1 {[%clk 0:02:00]}  Qe8 {[%clk 0:02:38]} 18. Qg5 {[%clk 0:02:00]}  Kf7 {[%clk 0:02:33]} 19. Rg3 {[%clk 0:01:58]}  Rg8 {[%clk 0:02:33]} 20. Rff3 {[%clk 0:01:53]}  Ne4 {[%clk 0:02:29]} 21. Nxe4 {[%clk 0:01:50]}  dxe4 {[%clk 0:02:29]} 22. Rd3 {[%clk 0:01:50]}  exd3 {[%clk 0:02:28]} 23. Qh5+ {[%clk 0:01:45]}  g6 {[%clk 0:02:23]} 24. Qh4 {[%clk 0:01:42]}  dxc2 {[%clk 0:02:18]} 25. Qf6# {[%clk 0:01:39]} 1-0


[Site "https://www.chess.com"]

[Event "Titled Tuesday Blitz February 07 Late 2023"]
[White "Chigaev, Maksim"]
[Black "Salem, A.R. Saleh"]
[WhiteFideId "4108116"]
[BlackFideId "9301348"]
[WhiteElo "2628"]
[BlackElo "2677"]
[Result "0-1"]
[Round "09"]
[TimeControl "180+2"]
[Date "2023.02.07"]
[WhiteClock "0:00:11"]
[BlackClock "0:00:03"]

1. e4 {[%clk 0:03:00]}  e5 {[%clk 0:02:52]} 2. Nf3 {[%clk 0:03:01]}  Nc6 {[%clk 0:02:53]} 3. Bc4 {[%clk 0:03:01]}  Nf6 {[%clk 0:02:53]} 4. d3 {[%clk 0:03:01]}  Bc5 {[%clk 0:02:54]} 5. c3 {[%clk 0:03:01]}  O-O {[%clk 0:02:54]} 6. Bg5 {[%clk 0:03:00]}  h6 {[%clk 0:02:53]} 7. Bh4 {[%clk 0:03:00]}  d6 {[%clk 0:02:50]} 8. Nbd2 {[%clk 0:03:00]}  a6 {[%clk 0:02:50]} 9. a3 {[%clk 0:02:53]}  Ba7 {[%clk 0:02:48]} 10. h3 {[%clk 0:02:52]}  g5 {[%clk 0:02:32]} 11. Bg3 {[%clk 0:02:49]}  Kg7 {[%clk 0:02:27]} 12. Bh2 {[%clk 0:02:48]}  Nh7 {[%clk 0:02:19]} 13. g4 {[%clk 0:02:46]}  Qf6 {[%clk 0:01:56]} 14. Nf1 {[%clk 0:02:39]}  Be6 {[%clk 0:01:49]} 15. Ng3 {[%clk 0:02:36]}  Kg8 {[%clk 0:01:44]} 16. Qe2 {[%clk 0:02:26]}  b5 {[%clk 0:01:41]} 17. Ba2 {[%clk 0:02:19]}  Rfd8 {[%clk 0:01:35]} 18. Nf5 {[%clk 0:01:55]}  Bxa2 {[%clk 0:01:24]} 19. Rxa2 {[%clk 0:01:54]}  Ne7 {[%clk 0:01:17]} 20. h4 {[%clk 0:01:37]}  Nxf5 {[%clk 0:01:11]} 21. hxg5 {[%clk 0:01:37]}  Nd4 {[%clk 0:00:53]} 22. gxf6 {[%clk 0:01:27]}  Nxe2 {[%clk 0:00:53]} 23. Kxe2 {[%clk 0:01:28]}  Nxf6 {[%clk 0:00:53]} 24. Raa1 {[%clk 0:01:17]}  Kf8 {[%clk 0:00:39]} 25. Bg3 {[%clk 0:01:13]}  Ng8 {[%clk 0:00:22]} 26. g5 {[%clk 0:01:07]}  hxg5 {[%clk 0:00:20]} 27. Nxg5 {[%clk 0:01:08]}  Ke7 {[%clk 0:00:15]} 28. Rh7 {[%clk 0:00:57]}  Rf8 {[%clk 0:00:16]} 29. Rah1 {[%clk 0:00:32]}  Nf6 {[%clk 0:00:15]} 30. R7h6 {[%clk 0:00:25]}  Ng4 {[%clk 0:00:15]} 31. R6h4 {[%clk 0:00:18]}  Nf6 {[%clk 0:00:16]} 32. R4h3 {[%clk 0:00:19]}  Kd7 {[%clk 0:00:12]} 33. Bh4 {[%clk 0:00:18]}  Nh5 {[%clk 0:00:07]} 34. Bg3 {[%clk 0:00:15]}  Nf6 {[%clk 0:00:07]} 35. Rh6 {[%clk 0:00:14]}  Ng4 {[%clk 0:00:03]} 36. Rh7 {[%clk 0:00:15]}  Ke7 {[%clk 0:00:04]} 37. Bh4 {[%clk 0:00:15]}  Ke8 {[%clk 0:00:04]} 38. Rg1 {[%clk 0:00:12]}  Nf6 {[%clk 0:00:04]} 39. Rh6 {[%clk 0:00:11]}  Ng8 {[%clk 0:00:02]} 40. Rh8 {[%clk 0:00:11]}  Ne7 {[%clk 0:00:02]} 41. Rxf8+ {[%clk 0:00:10]}  Kxf8 {[%clk 0:00:03]} 42. Nh7+ {[%clk 0:00:10]}  Ke8 {[%clk 0:00:03]} 43. Rg8+ {[%clk 0:00:11]}  Nxg8 {[%clk 0:00:03]} 0-1


[Site "https://www.chess.com"]